bitfinex/quotes_ETHUSD_20240722
["timestamp","ask_amount","ask_price","bid_price","bid_amount"]
[1721653292334,0.32093321,3503.8,3503.0,3.40463]
[1721653292530,0.32093321,3503.7,3503.1,2.8546]
[1721653292823,0.32093321,3503.6,3503.1,2.8546]
[1721653293038,0.32093321,3503.5,3503.1,2.8546]
[1721653293195,0.32093321,3503.4,3503.1,2.8546]
[1721653293395,0.32093321,3503.3,3503.1,2.8546]
[1721653293729,0.32093321,3503.2,3503.1,2.8546]
[1721653293932,0.32093321,3503.9,3503.1,2.8546]
[1721653294131,0.32093321,3503.8,3503.1,2.8546]
[1721653294292,0.32093321,3503.7,3503.1,2.8546]
[1721653294493,0.32093321,3503.6,3503.1,2.8546]
[1721653294729,0.32093321,3503.5,3503.1,2.8546]
[1721653294917,0.32093321,3503.4,3503.2,2.85453]
[1721653295104,0.32093321,3503.3,3503.2,2.85453]
[1721653295719,0.32093321,3504.0,3503.1,2.85461]
[1721653296027,2.8538,3504.1,3503.1,2.85461]
[1721653296028,1.16109953,3503.9,3503.1,2.85461]
[1721653296230,0.32093321,3503.8,3503.1,2.85461]
[1721653296548,0.32093321,3503.7,3503.0,3.40468]
[1721653296844,0.32093321,3503.6,3503.0,3.40468]
[1721653297142,0.32093321,3503.5,3502.7,5.13913]
[1721653297344,0.32093321,3503.4,3502.8,3.0]
[1721653297641,5.32123,3503.7,3502.8,3.0]
[1721653297642,0.32093321,3503.3,3502.8,3.0]
[1721653297813,0.32093321,3503.2,3502.7,5.13913]
[1721653298013,0.32093321,3503.1,3502.7,5.13913]
[1721653298246,0.32093321,3503.0,3502.7,2.85493]
[1721653298470,0.32093321,3502.9,3502.7,2.85493]
[1721653298780,0.32093321,3502.8,3502.7,2.85493]
[1721653298946,2.85507,3502.6,3501.6,5.75167569]
[1721653299135,2.2761,3503.0,3501.5,2.85585]
[1721653299136,3.17603321,3502.5,3501.5,2.85585]
[1721653299330,0.32093321,3502.4,3501.4,2.539]
[1721653299576,5.1791,3502.2,3501.2,5.15455]
[1721653299740,0.32093321,3502.1,3501.3,2.85608]
[1721653300080,0.32093321,3502.1,3501.2,5.15455]
[1721653300277,0.32093321,3502.1,3501.3,2.85607]
[1721653301358,0.32093321,3502.1,3501.6,2.85579]
[1721653301562,0.32093321,3502.1,3501.8,5.39467]
[1721653301780,0.32093321,3502.0,3501.8,5.39467]
[1721653301950,2.3267,3502.6,3501.8,2.539]
[1721653302139,0.320236,3502.5,3501.8,2.539]
[1721653302340,0.8501956,3502.4,3501.8,2.539]
[1721653302535,0.320236,3502.3,3501.8,2.539]
[1721653305062,0.320236,3502.2,3501.8,2.539]
[1721653305267,10.17485,3502.9,3501.8,2.59611019]
[1721653305453,4.84903361,3502.8,3501.9,2.85553]
[1721653305636,0.32046661,3502.7,3501.9,2.85553]
[1721653306161,0.32046661,3502.7,3502.0,2.8555]
[1721653306944,0.32046661,3502.7,3501.9,2.85556]
[1721653307253,2.03392997,3502.7,3501.9,2.85556]
[1721653307452,0.32046661,3502.6,3502.0,2.8555]
[1721653309974,0.32046661,3502.6,3502.2,2.539]
[1721653310278,7.32,3502.9,3502.3,0.55]
[1721653310492,0.3204134,3502.8,3502.5,2.85504]
[1721653310896,3.0,3503.3,3502.5,2.85504]
[1721653311195,2.03098143,3503.2,3502.5,2.85504]
[1721653311397,0.32040588,3503.1,3502.6,2.85501]
[1721653311818,0.32040588,3503.1,3502.4,2.85511]
[1721653311972,0.32040588,3503.1,3502.5,2.85509]
[1721653312893,0.32040588,3503.1,3502.3,0.55]
[1721653313093,8.37436166,3503.5,3502.8,2.85478]
[1721653313094,7.32,3503.5,3502.8,2.85478]
[1721653313321,0.32063878,3503.4,3503.0,2.85469]
[1721653313520,0.32063878,3503.4,3503.1,2.85455]
[1721653313684,7.32,3503.5,3503.2,2.85452]
[1721653314588,7.32,3503.5,3503.0,5.39364]
[1721653315485,7.32,3503.5,3503.1,2.85459]
[1721653315685,7.32,3503.5,3503.1,2.85454]
[1721653315921,7.32,3503.5,3503.3,2.85444]
[1721653316124,9.677,3504.1,3503.4,2.85431]
[1721653316319,0.32080634,3504.0,3503.4,2.85431]
[1721653319106,0.32080634,3504.0,3503.2,2.85446]
[1721653319405,0.99978063,3503.9,3503.2,2.85446]
[1721653319641,0.32080634,3503.8,3503.2,2.85446]
[1721653320303,0.32080634,3503.8,3503.0,2.539]
[1721653320503,0.32080634,3503.8,3503.0,2.85464]
[1721653320952,0.32080634,3503.8,3503.2,2.85446]
[1721653321150,0.32080634,3503.8,3503.4,2.85436]
[1721653321454,2.357,3504.1,3503.2,2.85446]
[1721653321455,0.32080634,3503.7,3503.3,2.85438]
[1721653321660,2.357,3504.1,3503.2,2.85446]
[1721653321661,0.32080634,3503.6,3503.4,2.85436]
[1721653321868,2.357,3504.1,3503.6,2.85419]
[1721653321869,2.878068,3504.1,3503.6,2.85419]
[1721653322074,0.3209736,3504.0,3503.7,2.85411]
[1721653322231,0.35,3504.3,3503.8,2.539]
[1721653322434,0.35,3504.3,3504.2,2.85371]
[1721653322761,7.32,3505.1,3504.3,2.85362]
[1721653323049,0.44751411,3504.9,3504.3,2.85362]
[1721653323266,3.20293,3505.2,3504.3,2.85362]
[1721653323550,0.64156875,3505.1,3504.3,2.85362]
[1721653323853,0.32127575,3505.0,3504.3,2.85362]
[1721653324225,0.32127575,3505.0,3504.4,2.85355]
[1721653324446,0.32127735,3504.9,3504.3,2.85362]
[1721653324611,0.320293,3505.1,3504.2,2.85366]
[1721653324811,0.32127715,3505.0,3504.2,2.85366]
[1721653327527,3.173273,3505.1,3504.2,2.85366]
[1721653327725,0.92388241,3505.0,3504.2,2.85366]
[1721653327941,0.6026093,3505.0,3504.2,2.85366]
[1721653328631,0.320293,3505.1,3504.2,2.85366]
[1721653328833,5.7993687,3505.5,3504.4,2.539]
[1721653329151,5.7993687,3505.5,3504.5,0.55]
[1721653329152,0.32118276,3505.4,3504.5,0.55]
[1721653329455,2.85274,3505.4,3504.5,3.40345]
[1721653329664,2.85274,3505.4,3504.5,0.55]
[1721653329815,5.7993587,3505.5,3504.5,0.55]
[1721653330020,2.85294,3505.2,3504.5,0.55]
[1721653330329,2.85304,3505.1,3504.4,2.539]
[1721653330515,2.85293,3505.2,3504.4,2.539]
[1721653330916,2.85293,3505.2,3503.8,5.21781]
[1721653330917,2.85293,3505.2,3504.0,2.539]
[1721653331263,2.85311,3505.0,3504.1,3.55]
[1721653332720,2.85328,3504.8,3504.1,3.55]
[1721653332917,2.85337,3504.7,3504.0,2.539]
[1721653333122,2.8534,3504.6,3503.6,5.539]
[1721653333351,2.8534,3504.6,3503.7,0.55]
[1721653334461,3.660618,3504.6,3503.7,0.55]
[1721653337058,0.807218,3504.6,3503.7,0.55]
[1721653337256,5.21878,3504.8,3503.8,2.85403]
[1721653337457,2.3655,3504.8,3504.0,2.539]
[1721653337784,2.853,3505.1,3504.0,7.85522]
[1721653337990,2.853,3505.1,3504.1,0.55]
[1721653338149,8.01640669,3505.2,3504.1,3.40378]
[1721653338358,2.85307,3505.0,3504.1,0.55]
[1721653339174,2.85314,3504.9,3504.1,0.55]
[1721653339368,4.22540167,3504.9,3504.1,0.55]
[1721653339766,2.85323,3504.8,3504.1,0.55]
[1721653341061,4.22541167,3504.9,3504.1,0.55]
[1721653341268,2.85327,3504.8,3504.1,0.55]
[1721653341567,1.37226167,3504.9,3504.1,0.55]
[1721653341793,2.85314,3504.9,3504.1,0.55]
[1721653342998,2.85302,3505.1,3504.1,3.40373]
[1721653343763,8.01640669,3505.2,3504.1,3.40373]
[1721653343764,2.85311,3505.0,3504.1,3.40373]
[1721653343964,11.21938669,3505.2,3504.1,3.40373]
[1721653344162,2.853,3505.1,3504.2,2.85371]
[1721653344894,2.853,3505.1,3504.1,0.55]
[1721653345099,8.01640669,3505.2,3504.1,0.55]
[1721653345293,2.85307,3505.0,3504.1,0.55]
[1721653345495,2.85307,3505.0,3504.1,3.40379]
[1721653345880,8.01640669,3505.2,3504.1,3.40379]
[1721653346199,7.67,3505.2,3504.4,2.539]
[1721653346400,2.85286,3505.3,3504.5,0.55]
[1721653346600,2.85267,3505.5,3504.5,0.55]
[1721653346969,2.85267,3505.5,3504.6,2.3749]
[1721653347469,4.46467687,3505.4,3504.6,2.3749]
[1721653347665,1.61193687,3505.4,3504.6,5.22828]
[1721653347870,5.85252,3505.7,3504.6,5.22828]
[1721653348200,5.85252,3505.7,3504.8,2.539]
[1721653349695,5.85252,3505.7,3504.8,2.59605606]
[1721653350063,7.32,3505.8,3504.9,0.55]
[1721653350268,7.32,3505.8,3505.0,2.853]
[1721653350470,7.32,3505.8,3505.1,0.55]
[1721653350682,2.85236,3505.9,3505.1,0.55]
[1721653351099,0.44743017,3506.0,3505.1,0.55]
[1721653351405,3.29968017,3506.0,3505.1,0.55]
[1721653351770,2.85235,3505.9,3505.1,0.55]
[1721653352400,2.85242,3505.8,3505.1,0.55]
[1721653352701,2.85242,3505.8,3504.9,3.40309]
[1721653353292,2.85242,3505.8,3504.9,0.55]
[1721653354210,2.3965,3506.3,3504.8,2.539]
[1721653354211,2.85266,3505.5,3504.8,2.539]
[1721653354408,2.85266,3505.5,3504.6,2.3749]
[1721653355088,3.17433954,3505.4,3504.6,2.3749]
[1721653355294,2.85278,3505.4,3504.6,2.3749]
[1721653355495,2.85278,3505.4,3504.7,0.55]
[1721653355689,2.85283,3505.3,3504.7,0.55]
[1721653355890,2.85266,3505.5,3504.7,0.55]
[1721653356101,0.32152569,3505.4,3504.7,0.55]
[1721653357992,2.85251,3505.7,3504.7,0.55]
[1721653358187,0.3212682,3505.6,3504.7,0.55]
[1721653358402,0.3212682,3505.6,3504.8,2.85322]
[1721653359025,0.3212682,3505.6,3504.8,5.39222]
[1721653359386,0.3212682,3505.6,3504.8,2.539]
[1721653360401,3.1738482,3505.6,3504.8,2.539]
[1721653360614,0.3212682,3505.5,3504.8,2.539]
[1721653360859,0.3212682,3505.4,3504.8,2.539]
[1721653361000,0.3212682,3505.3,3504.8,2.539]
[1721653361334,0.3212682,3505.2,3504.8,5.39222]
[1721653361498,2.85254,3505.7,3504.8,5.39222]
[1721653361693,0.32139069,3505.6,3504.8,5.39222]
[1721653361898,0.32139069,3505.6,3504.9,3.40313]
[1721653362213,0.32139069,3505.5,3504.9,3.40313]
[1721653362536,0.32139069,3505.4,3504.9,3.40313]
[1721653362712,2.85241,3505.8,3504.9,3.40313]
[1721653362713,0.32139069,3505.3,3504.9,3.40313]
[1721653363035,0.32139069,3505.2,3504.9,3.40313]
[1721653363232,2.85241,3505.8,3505.0,0.594213]
[1721653363450,0.32145598,3505.7,3505.0,0.594213]
[1721653368419,0.32145598,3505.7,3505.1,2.4951]
[1721653368770,0.32145598,3505.7,3505.2,0.55]
[1721653368917,0.32145598,3505.6,3505.2,0.55]
[1721653369258,0.32145598,3505.5,3505.2,0.55]
[1721653369414,0.32145598,3505.4,3505.2,0.55]
[1721653369752,0.32145598,3505.3,3505.2,0.55]
[1721653370256,0.32145598,3505.7,3505.2,0.55]
[1721653370416,0.32145598,3505.6,3505.2,0.55]
[1721653370617,0.32145598,3505.5,3505.2,0.55]
[1721653370838,0.32145598,3505.4,3505.2,0.55]
[1721653371042,0.32145598,3505.3,3504.8,5.0148]
[1721653371271,0.32145598,3505.2,3504.8,5.0148]
[1721653371477,0.32145598,3505.1,3504.9,0.55]
[1721653371656,0.32145598,3505.0,3504.9,0.55]
[1721653372743,0.32145598,3505.6,3504.9,0.55]
[1721653372943,2.85249,3505.7,3504.9,0.55]
[1721653372944,0.32145598,3505.5,3504.9,0.55]
[1721653373244,0.32145598,3505.4,3504.9,0.55]
[1721653373446,0.32145598,3505.3,3504.9,0.55]
[1721653373786,0.32145598,3505.2,3504.9,0.55]
[1721653373997,0.32145598,3505.1,3504.9,3.40314]
[1721653374283,0.32145598,3505.0,3504.9,3.40314]
[1721653374590,0.32145598,3505.6,3504.9,4.45914]
[1721653374745,0.32145598,3505.5,3505.3,1.056]
[1721653374946,0.32145598,3505.4,3505.3,1.056]
[1721653375481,3.17387598,3505.8,3505.3,1.056]
[1721653375682,0.32145598,3505.7,3505.5,1.056]
[1721653375855,0.32145598,3505.7,3505.3,1.056]
[1721653376800,0.32145598,3505.7,3505.5,1.056]
[1721653376941,0.32145598,3505.6,3505.5,1.056]
[1721653377173,0.32145598,3505.8,3505.5,1.056]
[1721653377495,0.32145598,3505.7,3505.5,1.056]
[1721653377673,0.32145598,3505.6,3505.5,1.056]
[1721653378072,6.17364598,3506.1,3505.5,1.056]
[1721653378272,2.19914558,3506.0,3505.8,1.056]
[1721653378505,0.32145598,3505.9,3505.8,1.056]
[1721653378660,3.32145598,3506.2,3505.8,1.056]
[1721653378858,0.32145598,3506.1,3506.0,1.056]
[1721653379864,0.32145598,3506.2,3506.0,1.056]
[1721653380061,0.32145598,3506.1,3506.0,1.056]
[1721653380257,0.32145598,3506.2,3506.0,1.056]
[1721653380486,0.32145598,3506.1,3506.0,1.056]
[1721653383206,0.32145598,3506.1,3505.3,2.3218]
[1721653383207,3.17367598,3506.1,3505.3,2.3218]
[1721653383410,2.85246,3505.8,3505.4,0.55]
[1721653383619,3.17395598,3505.7,3505.1,1.056]
[1721653383766,3.17395598,3505.7,3504.9,2.3358]
[1721653383767,0.32145598,3505.6,3505.3,1.056]
[1721653384595,0.32145598,3505.6,3504.9,2.3358]
[1721653385003,0.32145598,3505.6,3505.4,1.056]
[1721653385810,0.32145598,3505.5,3505.4,1.056]
[1721653385963,3.17387598,3505.8,3505.4,1.606]
[1721653386166,0.32145598,3505.7,3505.5,0.55]
[1721653386366,0.32145598,3505.7,3505.6,1.056]
[1721653387169,0.32145598,3505.7,3505.6,1.606]
[1721653387369,0.32145598,3506.2,3505.6,1.606]
[1721653387609,0.32145598,3506.1,3505.7,0.55]
[1721653387820,0.32145598,3506.0,3505.7,0.55]
[1721653388022,0.32145598,3505.9,3505.6,0.55]
[1721653388167,7.32,3506.3,3505.6,0.55]
[1721653388168,0.32145598,3505.8,3505.6,0.55]
[1721653388368,0.32145598,3505.7,3505.6,0.55]
[1721653388571,3.17355598,3506.2,3505.6,0.55]
[1721653388798,0.32145598,3506.1,3506.0,1.056]
[1721653389007,0.32145598,3506.1,3506.0,1.606]
[1721653390311,0.32145598,3506.1,3506.0,0.55]
[1721653392275,0.32145598,3506.3,3506.0,0.55]
[1721653392479,0.32145598,3506.2,3506.0,0.55]
[1721653392679,2.85194,3506.4,3506.1,0.55]
[1721653392918,0.32160108,3506.3,3506.1,0.55]
[1721653393122,0.32160108,3506.2,3506.1,0.55]
[1721653393278,0.32160108,3506.2,3505.8,0.55]
[1721653393613,0.32160108,3506.1,3505.8,0.55]
[1721653393917,0.32160108,3506.0,3505.8,0.55]
[1721653394090,5.10534,3506.7,3505.8,0.55]
[1721653394091,0.32160108,3505.9,3505.8,0.55]
[1721653395221,0.32160108,3506.6,3505.8,0.55]
[1721653395388,0.32160108,3506.5,3505.8,0.55]
[1721653395594,0.32160108,3506.4,3505.8,0.55]
[1721653395911,0.32160108,3506.3,3505.8,0.55]
[1721653396114,0.32160108,3506.2,3505.8,0.55]
[1721653396317,0.44736471,3506.9,3505.9,5.32179]
[1721653396318,0.32170747,3506.1,3505.9,5.32179]
[1721653396523,0.79736471,3506.9,3505.9,5.32179]
[1721653396524,0.32160063,3506.0,3505.9,2.4695]
[1721653396689,0.32160063,3506.0,3505.9,5.32181]
[1721653396894,0.32160063,3506.0,3505.9,5.87181]
[1721653397117,0.32160063,3506.7,3505.9,8.72407]
[1721653397418,0.32160063,3506.6,3505.9,5.87176]
[1721653397578,0.32160063,3506.5,3506.0,0.55]
[1721653397778,0.32160063,3506.4,3506.0,0.55]
[1721653398027,0.32160063,3506.3,3506.0,0.55]
[1721653398332,0.32160063,3506.2,3506.0,3.40224]
[1721653398504,2.85139,3507.1,3506.1,2.85214]
[1721653398817,0.32178934,3507.0,3506.2,0.55]
[1721653399175,0.32178934,3507.0,3506.2,3.40208]
[1721653399675,0.32178934,3507.0,3506.3,2.4181]
[1721653399918,0.32178934,3507.0,3506.4,0.55]
[1721653400519,0.32178934,3506.9,3506.4,0.55]
[1721653400844,3.44725573,3507.4,3506.4,0.55]
[1721653400845,0.32178934,3506.8,3506.5,0.0570313]
[1721653401114,3.44725573,3507.4,3506.6,0.55]
[1721653401115,0.32178934,3506.7,3506.6,0.55]
[1721653401321,1.63004491,3507.3,3506.6,0.55]
[1721653401475,1.63004491,3507.3,3506.4,2.85187]
[1721653401476,0.32178934,3507.2,3506.5,0.55]
[1721653402630,0.32178934,3507.2,3506.4,3.40188]
[1721653402782,0.32178934,3507.2,3506.5,2.85183]
[1721653402978,0.32178934,3507.1,3506.9,2.4317]
[1721653403234,0.32178934,3507.0,3506.9,2.4317]
[1721653403528,0.32178934,3507.3,3506.9,2.9817]
[1721653403741,0.3217681,3507.2,3506.9,5.83315]
[1721653403886,0.3217681,3507.1,3507.0,0.55]
[1721653404086,0.3217681,3507.7,3507.0,0.55]
[1721653406530,3.17305002,3507.6,3507.0,0.55]
[1721653406684,3.17313002,3507.5,3507.0,0.55]
[1721653407042,0.32205002,3507.4,3507.0,0.55]
[1721653407212,0.32205002,3507.3,3506.8,3.40158]
[1721653407387,2.8508,3507.8,3506.9,5.12499]
[1721653407736,0.322035,3507.7,3507.0,0.55]
[1721653408420,0.322035,3507.6,3507.0,0.55]
[1721653408626,0.322035,3507.5,3507.0,0.55]
[1721653408929,2.85066,3508.0,3507.0,0.55]
[1721653409093,2.85084,3507.8,3507.0,0.55]
[1721653409292,0.32207043,3507.7,3507.0,0.55]
[1721653409896,3.17296043,3507.7,3507.0,0.55]
[1721653410210,0.32207043,3507.6,3507.0,0.55]
[1721653410425,0.32207043,3507.6,3507.0,1.117513]
[1721653410627,2.85086,3507.8,3507.0,1.117513]
[1721653410790,0.32206151,3507.7,3507.0,1.117513]
[1721653411392,0.32206151,3507.7,3507.0,0.55]
[1721653411839,3.17299151,3507.7,3507.0,0.55]
[1721653412001,0.32206151,3507.6,3507.0,0.55]
[1721653412404,2.85081,3507.8,3507.0,0.55]
[1721653412589,0.32204891,3507.7,3507.0,0.55]
[1721653412791,2.85104,3507.5,3507.0,0.55]
[1721653413091,0.32211987,3507.4,3506.5,2.3956]
[1721653413290,2.85125,3507.3,3506.5,2.3956]
[1721653414422,2.85107,3507.5,3506.5,2.3956]
[1721653414631,0.32214301,3507.4,3506.5,2.3956]
[1721653415020,0.32214301,3507.4,3506.6,0.55]
[1721653415523,0.32214301,3507.4,3506.6,3.40171]
[1721653415692,2.85078,3507.9,3506.7,2.85167]
[1721653415889,0.3219798,3507.8,3506.8,3.40159]
[1721653416139,2.85093,3507.7,3506.9,0.55]
[1721653416320,0.3219798,3507.6,3506.9,0.55]
[1721653416842,0.3219798,3507.6,3506.8,2.3114]
[1721653417139,2.85079,3507.8,3506.9,3.972813]
[1721653417445,0.32183985,3507.7,3506.9,3.972813]
[1721653417737,0.32183985,3507.7,3506.9,1.121303]
[1721653417892,2.85095,3507.6,3506.9,0.55]
[1721653419396,5.29286,3508.0,3507.0,0.05702376]
[1721653419628,3.17275819,3507.9,3507.1,0.55]
[1721653419809,3.17280819,3507.8,3507.1,0.55]
[1721653420105,0.32200819,3507.7,3506.9,3.40148]
[1721653421456,2.3111,3508.8,3507.6,2.3716]
[1721653421597,0.29836252,3509.1,3507.4,2.534]
[1721653421598,0.32176328,3508.7,3508.0,2.4282]
[1721653421808,0.35,3508.9,3508.1,0.55]
[1721653422128,0.32166783,3508.8,3508.1,0.55]
[1721653422629,0.32166783,3508.8,3508.1,1.13289]
[1721653422942,7.32,3509.4,3508.1,3.98341]
[1721653422943,2.84965,3509.2,3508.1,3.98341]
[1721653423122,0.32230954,3509.1,3508.1,3.98341]
[1721653423326,3.17204954,3509.1,3508.1,3.98341]
[1721653423526,0.32230954,3509.0,3508.1,3.98341]
[1721653423705,0.32230954,3509.0,3508.2,0.38569263]
[1721653424047,2.84989,3508.9,3508.3,0.55]
[1721653424251,2.84967,3509.2,3508.3,0.55]
[1721653424400,7.32,3509.4,3508.3,0.55]
[1721653424401,2.8499,3508.9,3508.3,0.55]
[1721653424595,2.84999,3508.8,3508.3,0.55]
[1721653425248,2.84982,3509.0,3508.3,0.88638926]
[1721653425601,2.84993,3508.9,3508.3,0.88638926]
[1721653426811,2.84979,3509.1,3508.3,0.88638926]
[1721653427208,10.16954,3509.4,3508.5,2.4142]
[1721653427450,2.84962,3509.3,3508.6,0.55]
[1721653427628,2.84962,3509.3,3508.6,0.93505893]
[1721653427952,2.84954,3509.4,3508.6,0.93505893]
[1721653428121,2.84959,3509.3,3508.6,0.93505893]
[1721653428310,2.8494,3509.5,3508.6,0.93505893]
[1721653428311,2.84947,3509.5,3508.6,0.93505893]
[1721653428645,2.84949,3509.4,3508.6,0.93505893]
[1721653428810,2.84949,3509.4,3508.7,0.5835237]
[1721653429010,2.84949,3509.4,3508.8,0.55]
[1721653429224,2.84933,3509.6,3508.8,0.55]
[1721653429431,2.84941,3509.5,3508.8,0.55]
[1721653429632,2.84949,3509.4,3508.8,0.55]
[1721653429837,2.84938,3509.6,3508.8,0.55]
[1721653430042,2.84938,3509.6,3508.8,0.93505893]
[1721653430241,10.1691,3509.9,3509.0,2.3437]
[1721653430404,10.1691,3509.9,3509.1,0.606985]
[1721653430844,10.1691,3509.9,3509.1,0.55]
[1721653431645,7.32,3509.9,3509.1,3.39972]
[1721653431835,7.32,3509.9,3509.2,0.63132502]
[1721653432046,7.32,3509.9,3509.3,0.55]
[1721653432367,2.84894,3510.1,3509.3,0.55]
[1721653432647,2.84884,3510.2,3509.4,0.05698267]
[1721653432857,2.84884,3510.2,3509.6,2.3415]
[1721653433154,2.84884,3510.2,3509.7,0.55]
[1721653433444,0.0673948,3510.3,3509.7,0.83915]
[1721653433842,0.0673948,3510.3,3509.8,2.84915]
[1721653434042,0.0673948,3510.3,3510.0,2.84894]
[1721653434267,0.0673948,3510.3,3509.9,0.55]
[1721653434268,0.0673948,3510.3,3510.1,0.55]
[1721653434433,0.0673948,3510.3,3510.2,8.01478]
[1721653434635,0.0673948,3510.3,3510.2,5.71594]
[1721653435235,0.0673948,3510.3,3510.2,2.8671]
[1721653436582,0.0673948,3510.3,3510.2,0.55]
[1721653438447,0.0673948,3510.3,3510.2,2.9638]
[1721653439467,0.03501245,3510.3,3510.2,2.9638]
[1721653441750,0.03501245,3510.3,3510.2,5.81264]
[1721653441951,0.03501245,3510.3,3510.2,2.9638]
[1721653443252,0.03501245,3510.3,3510.2,5.81264]
[1721653444274,0.03501245,3510.3,3510.2,2.9638]
[1721653445062,0.03501245,3510.3,3510.2,0.55]
[1721653445257,0.03501245,3510.3,3509.9,3.55]
[1721653445455,0.03501245,3510.3,3509.4,2.84942]
[1721653445456,2.84888,3510.2,3509.3,2.2878]
[1721653445655,0.03501245,3510.3,3509.3,2.2878]
[1721653445900,0.03501245,3510.3,3509.5,2.84939]
[1721653446420,0.03501245,3510.3,3509.8,2.84916]
[1721653446710,0.03501245,3510.3,3510.0,5.14407]
[1721653447012,0.03501245,3510.3,3510.1,0.55]
[1721653447489,0.03501245,3510.3,3510.1,3.39891]
[1721653447863,0.03501245,3510.3,3510.1,0.55]
[1721653450112,2.84893,3510.1,3509.6,2.3584]
[1721653450349,2.84922,3509.8,3508.9,2.2956]
[1721653450511,2.84929,3509.7,3508.9,2.2956]
[1721653450725,2.84924,3509.8,3508.9,2.2956]
[1721653451023,2.84947,3509.5,3508.9,2.2956]
[1721653451209,2.84951,3509.4,3508.9,2.2956]
[1721653451553,2.84936,3509.6,3508.5,2.4985]
[1721653451836,2.84936,3509.6,3508.5,5.34871]
[1721653451837,2.84951,3509.4,3508.5,5.34871]
[1721653452036,2.84936,3509.6,3508.6,2.85008]
[1721653452210,2.84936,3509.6,3508.5,5.34871]
[1721653452211,2.84918,3509.8,3508.5,5.34868]
[1721653452396,2.84918,3509.8,3508.8,2.84996]
[1721653452902,2.849,3510.0,3509.0,2.84975]
[1721653452903,2.84905,3510.0,3509.0,2.84975]
[1721653453244,2.84906,3510.0,3509.2,2.4196]
[1721653453534,2.849,3510.1,3509.2,2.4196]
[1721653453742,2.849,3510.0,3509.3,0.55]
[1721653453919,2.849,3510.1,3509.3,0.55]
[1721653454115,2.88379245,3510.3,3509.3,0.55]
[1721653454331,2.84897,3510.1,3509.3,0.55]
[1721653455419,2.88379245,3510.3,3509.3,0.55]
[1721653455624,0.03501245,3510.3,3509.5,2.84933]
[1721653455822,0.03501245,3510.3,3509.6,0.55]
[1721653456058,0.03501245,3510.3,3509.4,2.84943]
[1721653456351,0.03501245,3510.3,3509.5,3.39938]
[1721653456648,0.03501245,3510.3,3509.6,0.55]
[1721653456863,0.03501245,3510.3,3509.8,2.84915]
[1721653457146,0.03501245,3510.3,3510.0,2.849]
[1721653457357,0.03501245,3510.3,3510.1,0.55]
[1721653457647,0.03501245,3510.3,3510.1,0.631345]
[1721653457847,0.03501245,3510.3,3510.2,0.55]
[1721653458435,0.03501245,3510.3,3509.4,2.3643]
[1721653458436,2.84891,3510.2,3509.4,2.3643]
[1721653458703,2.88377245,3510.3,3509.4,2.3643]
[1721653458842,2.88377245,3510.3,3510.0,0.32125737]
[1721653459017,0.6082577,3510.3,3510.0,0.32125737]
[1721653459214,2.84892,3510.1,3510.0,0.32125737]
[1721653459441,5.69784,3510.1,3510.0,0.32125737]
[1721653460075,6.04784,3510.1,3510.0,0.32125737]
[1721653460959,3.19892,3510.1,3510.0,0.32125737]
[1721653461193,2.84892,3510.1,3510.0,0.32125737]
[1721653461665,2.84892,3510.1,3510.0,0.87125737]
[1721653461869,2.84886,3510.2,3510.0,0.87125737]
[1721653462151,0.6082577,3510.3,3510.0,0.87125737]
[1721653462517,0.03501245,3510.3,3510.1,0.55]
[1721653464274,0.03501245,3510.3,3510.2,0.05697397]
[1721653464561,0.03501245,3510.3,3510.2,0.55]
[1721653465073,0.03501245,3510.3,3510.1,0.55]
[1721653465221,0.03501245,3510.3,3510.2,0.37201974]
[1721653465417,0.03501245,3510.3,3510.2,3.77085974]
[1721653466018,0.03501245,3510.3,3510.2,0.92201974]
[1721653466867,0.03501245,3510.3,3510.2,0.55]
[1721653467076,0.03501245,3510.3,3510.1,0.55]
[1721653470565,0.03501245,3510.3,3510.2,2.84884]
[1721653470767,0.03501245,3510.3,3510.2,0.55]
[1721653471263,0.03501245,3510.3,3510.1,0.55]
[1721653471471,0.03501245,3510.3,3510.2,0.37203274]
[1721653471778,0.03501245,3510.3,3510.2,0.92203274]
[1721653473071,0.03501245,3510.3,3510.2,0.55]
[1721653473236,0.03501245,3510.3,3510.1,0.55]
[1721653475130,5.69784,3510.1,3510.0,0.32125737]
[1721653475370,8.49359841,3510.1,3510.0,0.32125737]
[1721653475663,9.3464595,3510.1,3510.0,0.32125737]
[1721653478930,9.6964595,3510.1,3510.0,0.32125737]
[1721653479426,5.69862,3509.7,3508.5,7.31]
[1721653479628,2.85705841,3509.6,3508.3,2.3872]
[1721653479826,2.84976,3509.1,3508.3,2.3872]
[1721653480031,0.32305841,3509.0,3508.3,2.3872]
[1721653480282,3.17289841,3509.0,3508.3,2.3872]
[1721653480576,0.32305841,3508.9,3508.3,2.3872]
[1721653480744,0.32305841,3508.8,3508.3,2.3872]
[1721653480947,2.84976,3509.1,3508.4,0.55]
[1721653481132,0.32281849,3509.0,3508.4,0.55]
[1721653481647,3.17264849,3509.0,3508.4,0.55]
[1721653481969,0.32281849,3508.9,3508.4,0.55]
[1721653482883,3.17275849,3508.9,3508.4,0.55]
[1721653483086,0.32281849,3508.8,3508.4,0.55]
[1721653483294,3.17280849,3508.8,3508.4,0.55]
[1721653483461,3.17280849,3508.8,3508.0,3.0]
[1721653483462,0.32250944,3508.7,3508.1,0.55]
[1721653483819,3.17256944,3508.7,3508.1,0.55]
[1721653483999,3.17265944,3508.6,3508.1,0.55]
[1721653484144,2.85015,3508.6,3508.1,0.55]